bitfinex/quotes_ETHUSD_20220118
["timestamp","ask_amount","ask_price","bid_price","bid_amount"]
[1642542111055,0.0418526,3155.7,3155.4,2.6922718]
[1642542111459,0.0418526,3155.7,3155.5,2.82671255]
[1642542111763,0.0418526,3155.7,3155.6,4.6267]
[1642542111962,0.0418526,3155.7,3155.6,0.1267]
[1642542112360,0.0418526,3155.7,3155.4,0.00113685]
[1642542112961,0.0418526,3155.7,3155.6,2.69090634]
[1642542114013,0.0418526,3155.7,3155.4,2.69204319]
[1642542114613,0.0418526,3155.7,3155.6,3.2]
[1642542115414,0.0418526,3155.7,3155.6,5.89108418]
[1642542116618,4.86275,3156.2,3155.8,4.65]
[1642542116619,0.1267,3156.2,3155.8,4.65]
[1642542116818,0.0231,3156.5,3155.9,3.23238799]
[1642542117022,3.9555,3157.0,3155.8,0.2548]
[1642542117023,0.01262202,3157.4,3156.0,0.28499]
[1642542117220,3.83399232,3157.6,3156.4,0.0124953]
[1642542117221,1.1321238,3157.6,3156.4,0.0124953]
[1642542117471,1.1321238,3157.6,3156.5,0.15829]
[1642542117472,0.00568423,3156.6,3156.5,0.15829]
[1642542117661,0.00568423,3156.6,3156.5,3.57963705]
[1642542118563,0.00568423,3156.6,3156.5,4.30684294]
[1642542118863,0.00568423,3156.6,3156.5,4.14855294]
[1642542119264,0.00568423,3156.6,3156.5,2.69108418]
[1642542120065,0.00568423,3156.6,3156.4,0.5005]
[1642542120267,0.00568423,3156.6,3156.5,1.2695165]
[1642542120465,0.79217,3157.0,3156.5,1.2695165]
[1642542120871,0.0073895,3156.9,3156.5,1.2695165]
[1642542121309,0.1267,3157.2,3156.5,1.2695165]
[1642542121310,2.03972747,3156.8,3156.5,1.2695165]
[1642542121506,0.00682108,3156.8,3156.5,1.2695165]
[1642542121709,0.00625266,3156.7,3156.5,1.2695165]
[1642542121905,0.00625266,3156.7,3156.4,0.2388]
[1642542122111,0.00568423,3156.6,3156.4,0.2388]
[1642542122311,0.00568423,3156.6,3156.1,0.25579206]
[1642542122611,0.79741581,3156.5,3155.7,0.1267]
[1642542122811,0.79741581,3156.5,3155.8,2.30335517]
[1642542123012,4.0075,3156.9,3156.3,1.27140475]
[1642542123013,0.00454739,3156.4,3156.3,1.27140475]
[1642542123913,0.00454739,3156.4,3155.9,5.70543638]
[1642542124111,0.00454739,3156.4,3155.9,2.69079431]
[1642542124311,0.00397896,3156.3,3155.9,2.69079431]
[1642542124511,0.00397896,3156.3,3155.8,2.30335517]
[1642542124711,0.00341054,3156.2,3155.8,2.30335517]
[1642542124959,0.91898,3157.1,3156.3,3.19658946]
[1642542125157,1.5844885,3156.9,3156.3,3.19658946]
[1642542125355,0.00454739,3157.0,3156.3,3.19658946]
[1642542125761,0.00397896,3156.9,3156.3,3.19658946]
[1642542126064,0.00341054,3156.8,3156.3,3.19658946]
[1642542126260,0.00341054,3156.8,3156.4,1.68061166]
[1642542126462,0.00284212,3156.7,3156.4,1.68061166]
[1642542126861,0.79215,3157.1,3156.4,1.68061166]
[1642542126862,0.00227369,3156.6,3156.4,2.7921139]
[1642542127261,0.00170527,3156.5,3156.4,2.7921139]
[1642542128061,0.00170527,3156.5,3156.4,5.68264377]
[1642542128710,0.00170527,3156.5,3156.4,2.7921139]
[1642542128906,0.00170527,3156.5,3156.4,5.70626231]
[1642542129507,0.00170527,3156.5,3156.4,5.83296231]
[1642542130409,0.00170527,3156.5,3156.4,2.9188139]
[1642542132665,0.00170527,3156.5,3156.4,5.8550761]
[1642542133065,0.00170527,3156.5,3156.4,6.0133661]
[1642542133264,0.00170527,3156.5,3156.4,7.6015761]
[1642542133464,0.00170527,3156.5,3156.4,10.29223196]
[1642542134065,0.00170527,3156.5,3156.4,10.45052196]
[1642542134265,0.00170527,3156.5,3156.4,9.45052196]
[1642542134768,0.01211119,3157.9,3156.9,5.55]
[1642542134979,0.47381961,3158.4,3157.1,0.01224681]
[1642542134980,0.1284086,3158.4,3157.1,0.01224681]
[1642542135172,0.1284086,3158.4,3157.2,0.38576554]
[1642542135173,0.00454739,3157.3,3157.2,0.38576554]
[1642542135371,0.00454739,3157.3,3157.2,4.11485342]
[1642542135570,0.00454739,3157.3,3157.2,7.24031457]
[1642542135770,0.00454739,3157.3,3157.2,6.59559301]
[1642542135971,0.00454739,3157.3,3157.2,6.43730301]
[1642542136210,0.00454739,3157.3,3157.2,2.08118184]
[1642542136813,0.00454739,3157.3,3157.2,1.58118184]
[1642542137213,0.00454739,3157.3,3157.2,3.05696408]
[1642542137613,0.00454739,3157.3,3157.2,6.01563931]
[1642542137815,0.00454739,3157.3,3157.2,6.23681512]
[1642542138014,0.00454739,3157.3,3157.2,3.05696408]
[1642542138612,0.00454739,3157.3,3157.2,1.58118184]
[1642542139823,0.00454739,3157.3,3157.2,7.54791666]
[1642542140065,0.00454739,3157.3,3157.2,7.70620666]
[1642542140973,0.00454739,3157.3,3157.2,8.80785298]
[1642542141167,0.0018086,3158.4,3157.2,2.84111816]
[1642542141168,0.00813189,3158.4,3157.2,2.84111816]
[1642542141369,0.1266,3158.4,3157.2,2.84111816]
[1642542141570,0.00511581,3158.2,3157.2,2.84111816]
[1642542141968,0.00454739,3158.1,3157.3,2.89413793]
[1642542142168,0.79645739,3158.1,3157.3,2.92808474]
[1642542142372,0.00397896,3158.0,3157.2,2.84111816]
[1642542142570,0.791959,3157.9,3157.3,0.1265]
[1642542142770,0.79536954,3157.9,3157.3,0.1265]
[1642542142970,0.00284212,3157.8,3157.3,0.1265]
[1642542143174,0.00284212,3157.8,3157.4,0.15829]
[1642542143371,0.00227369,3157.7,3157.4,1.05049]
[1642542143571,0.00227369,3157.7,3157.6,5.35829]
[1642542143820,4.2601,3158.6,3157.6,5.35829]
[1642542143821,4.2601,3158.6,3157.6,5.48479]
[1642542144017,4.2601,3158.6,3157.7,0.1265]
[1642542144221,0.00682108,3158.5,3157.8,3.1223765]
[1642542144417,0.00682108,3158.5,3157.9,0.1265]
[1642542144617,4.2601,3158.6,3157.9,0.1265]
[1642542144618,0.00625266,3158.4,3157.9,0.1265]
[1642542145018,0.00568423,3158.3,3157.9,0.1265]
[1642542145421,1.2024,3158.6,3157.9,0.1265]
[1642542145422,0.00511581,3158.2,3157.9,0.1265]
[1642542145818,0.00454739,3158.1,3157.9,0.1265]
[1642542146219,0.00397896,3158.0,3157.9,3.00460325]
[1642542146419,0.00397896,3158.0,3157.9,0.1265]
[1642542146823,0.00397896,3158.0,3157.8,3.1223765]
[1642542147219,0.00341054,3157.9,3157.8,3.1223765]
[1642542147660,0.00341054,3157.9,3157.8,3.2806665]
[1642542148260,0.00341054,3157.9,3157.8,3.1223765]
[1642542148462,0.00341054,3157.9,3157.8,1.77962331]
[1642542149465,0.00341054,3157.9,3157.8,3.07195382]
[1642542150062,0.00341054,3157.9,3157.8,1.77962331]
[1642542150463,0.12991054,3157.9,3157.8,1.77962331]
[1642542150665,5.67991054,3157.9,3157.3,3.2]
[1642542150867,0.1265,3157.8,3157.3,3.2]
[1642542151070,0.12934212,3157.8,3157.4,1.26739328]
[1642542151358,0.00227369,3157.7,3157.4,1.26739328]
[1642542151747,1.59690226,3158.0,3157.4,1.26739328]
[1642542151748,2.33847614,3157.6,3157.4,1.26739328]
[1642542152051,0.00113685,3157.5,3157.4,1.26739328]
[1642542152548,0.00113685,3157.5,3157.3,3.2]
[1642542153049,0.79317685,3157.5,3157.3,3.2]
[1642542154150,0.00113685,3157.5,3157.3,3.2]
[1642542154350,0.01406231,3157.5,3157.3,3.2]
[1642542154550,5.2765,3157.4,3157.3,3.2]
[1642542154962,0.1265,3157.4,3157.3,3.2]
[1642542155760,5.29794195,3157.5,3157.3,3.2]
[1642542155962,5.29728131,3157.5,3157.3,3.2]
[1642542156564,5.29728131,3157.5,3157.3,2.467583]
[1642542156966,0.1265,3157.4,3157.3,2.467583]
[1642542157171,2.92072681,3157.5,3157.3,2.467583]
[1642542157371,0.79319685,3157.5,3157.3,2.467583]
[1642542157768,0.00113685,3157.5,3157.3,2.467583]
[1642542158368,0.00113685,3157.5,3157.4,1.65295922]
[1642542160614,0.79319685,3157.5,3157.4,1.65295922]
[1642542162664,0.79319685,3157.5,3157.3,2.467583]
[1642542162861,1.58538645,3157.5,3157.3,2.467583]
[1642542163465,0.00113685,3157.5,3157.3,2.467583]
[1642542163863,0.00113685,3157.5,3157.4,1.64754714]
[1642542164567,0.00113685,3157.5,3157.4,8.13572839]
[1642542164766,0.00113685,3157.5,3157.4,4.58572839]
[1642542164965,0.00113685,3157.5,3157.4,1.64754714]
[1642542165769,0.00113685,3157.5,3157.4,1.77404714]
[1642542168015,0.00113685,3157.5,3157.4,1.64754714]
[1642542171260,1.2132,3158.2,3157.5,0.00646567]
[1642542171461,3.38161152,3158.2,3157.5,0.00646567]
[1642542171661,0.00341054,3158.1,3157.5,0.00646567]
[1642542171863,1.94258303,3157.7,3157.5,0.00646567]
[1642542172462,0.79201,3157.7,3157.5,0.00646567]
[1642542172863,1.71339211,3158.0,3157.5,0.00646567]
[1642542172864,0.12934211,3158.0,3157.5,0.00646567]
[1642542173067,0.00284211,3158.0,3157.5,0.00646567]
[1642542173264,0.00227369,3157.9,3157.5,0.00646567]
[1642542173465,0.1265,3157.8,3157.5,0.00646567]
[1642542173713,0.00170527,3157.8,3157.5,0.00646567]
[1642542173911,0.00113684,3157.7,3157.5,0.00646567]
[1642542174311,2.89656521,3157.9,3157.5,0.00646567]
[1642542174312,0.00170527,3157.8,3157.5,0.00646567]
[1642542174714,0.1265,3158.0,3157.5,0.00646567]
[1642542174715,0.00113684,3157.7,3157.5,0.00646567]
[1642542174918,0.00113684,3157.7,3157.6,1.30245346]
[1642542175118,0.1265,3158.0,3157.6,1.30245346]
[1642542175119,0.00227369,3157.9,3157.6,1.30245346]
[1642542175418,1.2132,3158.2,3157.6,1.30245346]
[1642542175419,0.00170527,3157.8,3157.6,1.30245346]
[1642542175622,0.00170527,3157.8,3157.6,1.17595346]
[1642542175818,0.00113684,3157.7,3157.6,1.17595346]
[1642542177119,0.00113684,3157.7,3157.6,4.21283048]
[1642542177323,0.00113684,3157.7,3157.6,4.33933048]
[1642542177969,0.00113684,3157.7,3157.6,1.30245346]
[1642542178770,0.00113684,3157.7,3157.6,0.1265]
[1642542180174,0.00113684,3157.7,3157.5,0.00646567]
[1642542180777,0.00113684,3157.7,3157.6,1.26002103]
[1642542182516,0.00113684,3157.7,3157.5,0.00646567]
[1642542182716,1.02293684,3157.7,3157.5,0.00646567]
[1642542183716,2.60702084,3157.7,3157.5,0.00646567]
[1642542185571,2.60702084,3157.7,3157.5,1.53674129]
[1642542185976,1.81495684,3157.7,3157.5,1.53674129]
[1642542186774,1.81495684,3157.7,3157.5,1.48674129]
[1642542187073,1.02293684,3157.7,3157.5,1.48674129]
[1642542188072,1.81496684,3157.7,3157.5,1.48674129]
[1642542188272,1.02293684,3157.7,3157.5,1.48674129]
[1642542188733,0.00113684,3157.7,3157.5,1.48674129]
[1642542189425,0.00113684,3157.7,3157.5,1.43674129]
[1642542190126,0.00113684,3157.7,3157.3,2.467583]
[1642542190326,0.00113684,3157.7,3157.3,2.594083]
[1642542191130,0.00113684,3157.7,3157.6,1.47597479]
[1642542191926,0.00113684,3157.7,3157.3,2.594083]
[1642542192128,1.93613648,3157.6,3157.3,2.594083]
[1642542192465,0.00113684,3157.7,3157.3,2.544083]
[1642542193267,0.00113684,3157.7,3157.4,1.2450027]
[1642542194067,0.00113684,3157.7,3157.4,1.1950027]
[1642542194269,0.00113684,3157.7,3157.4,3.8351778]
[1642542194471,0.00113684,3157.7,3157.5,0.06908074]
[1642542194671,0.00113684,3157.7,3157.5,0.01908074]
[1642542194873,0.00113684,3157.7,3157.4,1.1450027]
[1642542195173,0.00113684,3157.7,3157.3,2.544083]
[1642542195373,0.00113684,3157.7,3157.3,2.417583]
[1642542195971,0.79203,3157.6,3157.3,2.417583]
[1642542197620,1.5840976,3157.6,3157.3,2.417583]
[1642542197820,0.01554285,3157.5,3157.3,2.417583]
[1642542198019,1.5840976,3157.6,3157.4,1.13001248]
[1642542198220,0.79203,3157.6,3157.4,1.13001248]
[1642542198424,0.00113684,3157.7,3157.4,1.13001248]
[1642542199020,2.08128173,3157.9,3157.4,1.13001248]
[1642542199221,2.08128173,3157.9,3157.5,0.00113684]
[1642542199420,0.1265,3158.0,3157.5,0.00113684]
[1642542199421,0.9185,3158.0,3157.5,0.00113684]
[1642542199621,0.79199,3157.8,3157.5,0.00113684]
[1642542199820,0.00113685,3157.9,3157.5,0.00113684]
[1642542200270,0.00170527,3158.0,3157.5,0.00113684]
[1642542200670,0.00170527,3158.0,3157.6,0.19830211]
[1642542201068,0.00170527,3158.0,3157.7,0.15829]
[1642542201270,0.00170527,3158.0,3157.8,0.15778177]
[1642542201669,0.1265,3158.7,3158.0,5.55]
[1642542201874,3.8636888,3159.1,3158.2,5.55]
[1642542201875,0.0029888,3159.1,3158.2,5.55]
[1642542202074,0.0029888,3159.1,3158.4,1.58298]
[1642542202273,0.0029888,3159.1,3158.5,4.37562453]
[1642542202475,0.0029888,3159.1,3158.6,0.15829]
[1642542202673,0.0029888,3159.1,3158.7,0.1265]
[1642542202874,0.0029888,3159.1,3158.8,2.27212006]
[1642542203075,0.0029888,3159.1,3159.0,1.47136531]
[1642542203275,0.0029888,3159.1,3159.0,1.59786531]
[1642542203476,0.00924146,3159.1,3159.0,1.47136531]
[1642542206722,0.00924146,3159.1,3159.0,4.67136531]
[1642542207769,0.00924146,3159.1,3159.0,7.54649313]
[1642542207970,0.00924146,3159.1,3159.0,7.67299313]
[1642542209969,0.00924146,3159.1,3159.0,4.79786531]
[1642542212444,0.00924146,3159.1,3159.0,4.67136531]
[1642542218375,0.1265,3160.0,3159.0,4.67136531]
[1642542218376,0.007116,3160.1,3159.3,2.36192635]
[1642542218575,0.01779,3160.1,3159.4,0.1265]
[1642542218825,0.00341054,3159.7,3159.4,0.1265]
[1642542219224,0.00284212,3159.6,3159.5,1.15051886]
[1642542220028,0.00284212,3159.6,3159.5,3.08352905]
[1642542221027,0.00973216,3160.1,3159.5,3.08352905]
[1642542221230,0.01684816,3160.1,3159.5,3.08352905]
[1642542221426,0.00227369,3160.0,3159.5,3.08352905]
[1642542221827,0.00170527,3159.9,3159.5,3.08352905]
[1642542222137,9.94044168,3160.7,3159.5,3.08352905]
[1642542222138,0.014232,3161.1,3159.8,0.80394518]
[1642542222331,0.01779,3161.1,3161.0,0.01275355]
[1642542222611,0.01779,3161.1,3161.0,7.61145572]
[1642542222809,9e-05,3161.1,3161.0,10.74875488]
[1642542223012,0.001779,3161.3,3161.1,5.55]
[1642542223210,0.001779,3161.3,3161.2,8.68729916]
[1642542223412,0.00973693,3161.3,3161.2,3.13729916]
[1642542223612,0.00973693,3161.3,3161.1,0.79077]
[1642542224010,0.0073895,3161.2,3161.1,0.79077]
[1642542224209,0.0073895,3161.2,3161.1,6.49906]
[1642542224609,0.0073895,3161.2,3161.1,11.45320208]
[1642542225914,0.0073895,3161.2,3161.1,3.53087208]
[1642542226315,0.0073895,3161.2,3161.1,4.53087208]
[1642542227119,0.0073895,3161.2,3161.1,7.73087208]
[1642542227327,0.0073895,3161.2,3161.1,3.3265]
[1642542227524,0.0073895,3161.2,3161.1,3.2]
[1642542228722,0.0073895,3161.2,3161.1,4.39781039]
[1642542228924,0.0073895,3161.2,3161.1,3.2]
[1642542229523,0.0073895,3161.2,3161.1,5.84746716]
[1642542229962,0.0073895,3161.2,3161.1,7.13985218]
[1642542230262,0.0073895,3161.2,3161.1,4.49238502]
[1642542230464,0.0073895,3161.2,3161.1,3.2]
[1642542230664,5.5573895,3161.2,3161.1,3.2]
[1642542231261,0.0073895,3161.2,3161.1,3.2]
[1642542233818,3.0073895,3161.2,3161.1,3.2]
[1642542234016,3.01963041,3161.2,3161.1,3.2]
[1642542234616,5.56963041,3161.2,3161.1,3.2]
[1642542235818,3.81088041,3161.2,3161.1,3.2]
[1642542236018,3.01963041,3161.2,3161.1,3.2]
[1642542238370,0.01963041,3161.2,3161.1,3.2]
[1642542241616,4.96963041,3161.2,3161.1,3.2]
[1642542242114,4.96963041,3161.2,3160.3,0.0330532]
[1642542242115,1.58283,3161.0,3160.3,0.0330532]
[1642542242312,0.01264076,3160.5,3160.1,0.1265]
[1642542242520,0.76604076,3160.5,3160.1,0.1265]
[1642542242716,0.00284212,3160.4,3159.7,0.1265]
[1642542243116,0.79148,3160.2,3159.7,0.1265]
[1642542243417,0.79148,3160.2,3160.1,2.04925234]
[1642542243615,0.79148,3160.2,3159.7,0.1265]
[1642542243820,0.00170527,3160.2,3159.7,0.1265]
[1642542244215,0.00170527,3160.2,3159.9,1.21074239]
[1642542244416,0.00170527,3160.2,3160.0,3.0102759]
[1642542244615,0.00170527,3160.2,3159.9,5.66798389]
[1642542244815,0.00170527,3160.2,3160.0,3.8599]
[1642542245063,0.00170527,3160.2,3160.1,5.55]
[1642542245265,0.00170527,3160.2,3160.1,7.67950233]
[1642542245469,0.00170527,3160.2,3160.1,2.12950233]
[1642542246466,0.00170527,3160.2,3160.1,6.48779233]
[1642542247069,0.001779,3161.3,3160.5,0.79096]
[1642542247266,0.001779,3161.3,3160.7,1.10505995]
[1642542247468,0.001779,3161.3,3160.8,0.1265]
[1642542247469,0.00568423,3161.2,3160.8,0.1265]
[1642542247870,0.00511581,3161.1,3160.9,1.72016677]
[1642542248073,0.00511581,3161.1,3161.0,5.6765]
[1642542248270,0.001779,3161.3,3161.0,8.86934211]
[1642542248726,0.00568423,3161.2,3161.0,10.45089211]
[1642542248917,0.00568423,3161.2,3161.1,9.02325751]
[1642542249116,0.001779,3161.3,3161.1,9.14975751]
[1642542249317,0.001779,3161.3,3161.2,9.92269721]
[1642542249816,0.00803166,3161.3,3161.2,11.03486187]
[1642542250016,0.00803166,3161.3,3161.2,11.19303187]
[1642542250219,0.00803166,3161.3,3161.2,5.64303187]
[1642542250821,0.00803166,3161.3,3161.2,5.48486187]
[1642542251021,0.00803166,3161.3,3161.2,5.64303187]
[1642542251620,0.00803166,3161.3,3161.2,5.73129112]
[1642542252221,0.00803166,3161.3,3161.2,4.94060112]
[1642542253873,0.00803166,3161.3,3161.2,1.20042391]
[1642542254273,0.00803166,3161.3,3161.2,0.08825925]
[1642542256226,1.94649919,3161.3,3161.2,0.08825925]
[1642542256418,0.00803166,3161.3,3161.2,0.08825925]
[1642542256617,0.00803166,3161.3,3160.7,0.791]
[1642542257018,0.00568423,3161.2,3160.7,0.791]
[1642542257217,0.001779,3161.3,3161.2,3.19431577]
[1642542259427,1.0,3162.0,3161.2,5.49721142]
[1642542259729,0.00397897,3161.9,3161.7,1.17399129]
[1642542260165,0.00341054,3161.8,3161.7,1.17399129]
[1642542260864,0.00341054,3161.8,3161.7,3.03823916]
[1642542261463,0.00341054,3161.8,3161.7,1.86424787]
[1642542261665,0.00341054,3161.8,3161.7,1.95243424]
[1642542263472,0.00341054,3161.8,3161.7,4.597837]
[1642542263738,0.00341054,3161.8,3161.7,1.95243424]
[1642542264124,0.00341054,3161.8,3161.7,4.59843634]
[1642542264725,0.00341054,3161.8,3161.7,1.95243424]
[1642542266426,0.00341054,3161.8,3161.7,0.08818637]
[1642542266827,0.00341054,3161.8,3161.6,0.1265]
[1642542267226,1.0,3162.0,3161.6,0.1265]
[1642542267227,0.00284212,3161.7,3161.6,0.1265]
[1642542267465,0.00284212,3161.7,3161.2,3.19431577]
[1642542267466,0.00284212,3161.7,3161.3,0.790859]
[1642542267870,0.0022737,3161.6,3161.4,1.65434054]
[1642542268271,0.00170527,3161.5,3161.4,1.65434054]
[1642542271531,0.00170527,3161.5,3161.4,4.52564356]
[1642542271924,0.97436169,3162.0,3161.5,3.15]
[1642542272125,0.97436169,3162.0,3161.7,1.37672037]
[1642542272325,0.0022737,3161.9,3161.8,2.7364751]
[1642542273527,0.0022737,3161.9,3161.8,2.8629751]
[1642542273925,0.0022737,3161.9,3161.8,2.75275388]
[1642542274128,0.0022737,3161.9,3161.8,2.25286258]
[1642542274325,0.0022737,3161.9,3161.7,1.37672037]
[1642542274524,0.0022737,3161.9,3161.7,1.50322037]
[1642542274727,0.97436169,3162.0,3161.7,1.50322037]
[1642542274728,0.00170527,3161.8,3161.7,1.50322037]
[1642542276775,0.00170527,3161.8,3161.7,1.59140674]
[1642542277175,0.00170527,3161.8,3161.7,1.46490674]
[1642542277576,0.00170527,3161.8,3161.7,0.08818637]
[1642542279718,0.00170527,3161.8,3161.7,8.46031612]
[1642542280118,0.00170527,3161.8,3161.7,8.84031612]
[1642542280319,0.00170527,3161.8,3161.7,9.99848612]
[1642542280518,0.00170527,3161.8,3161.7,6.62972612]
[1642542280718,1.1328,3163.1,3161.8,5.55]
[1642542280919,1.1328,3163.1,3162.1,0.79057]
[1642542281119,0.00568424,3162.8,3162.3,0.79057]
[1642542281519,0.00511582,3162.7,3162.3,0.79057]
[1642542281720,0.00511582,3162.7,3162.4,3.47785014]
[1642542282024,0.00454739,3162.6,3162.5,1.74589094]
[1642542282984,0.00454739,3162.6,3162.5,4.35993481]
[1642542283384,0.00454739,3162.6,3162.5,4.48633481]
[1642542286717,0.00454739,3162.6,3162.5,4.64450481]
[1642542286919,3.6639,3163.8,3162.6,5.55]
[1642542287121,3.6639,3163.8,3163.1,0.7903447]
[1642542287317,1.1983,3164.1,3163.2,0.1264]
[1642542287318,0.00568424,3163.6,3163.2,0.1264]
[1642542287722,0.00511581,3163.5,3163.3,2.08346193]
[1642542288123,0.00454739,3163.4,3163.3,2.08346193]
[1642542289022,0.00454739,3163.4,3163.3,1.68334509]
[1642542290067,3.39514739,3163.4,3163.3,1.68334509]
[1642542290266,0.79514739,3163.4,3163.3,1.68334509]
[1642542290766,0.79514739,3163.4,3163.2,3.2]
[1642542291268,0.00397897,3163.3,3163.2,3.2]
[1642542291667,0.00397897,3163.3,3163.2,5.14171311]
[1642542294835,5.55397897,3163.3,3163.2,0.4919175]
[1642542295035,7.02730767,3163.3,3163.2,0.4919175]
[1642542296038,7.02730767,3163.3,3162.2,0.1264]
[1642542296039,5.55,3163.2,3162.2,0.1264]
[1642542296238,0.79089,3162.9,3162.2,0.1264]
[1642542296439,0.79089,3162.9,3162.3,0.00170527]
[1642542296638,0.00113685,3162.8,3162.3,0.00170527]
[1642542297142,6.34093,3162.4,3162.3,0.00170527]
[1642542297775,0.79093,3162.4,3162.3,0.00170527]
[1642542299073,0.79093,3162.4,3162.2,1.87960815]
[1642542299984,0.79093,3162.4,3162.2,4.07960815]
[1642542299985,6.39697671,3162.3,3162.2,4.07960815]
[1642542300183,5.55,3162.3,3162.2,2.2]
[1642542300381,5.55,3162.3,3162.2,2.20227369]
[1642542301422,5.55,3162.3,3162.2,2.16498006]
[1642542301821,2.3728094,3162.4,3162.2,2.16498006]
[1642542302022,3.16379,3162.4,3162.2,2.16498006]
[1642542302827,1.58183,3162.4,3162.2,2.16498006]
[1642542303325,1.91081848,3162.3,3162.2,2.16498006]
[1642542303525,0.79093,3162.4,3162.2,2.16498006]
[1642542303727,0.79097,3162.5,3162.2,2.16498006]
[1642542304228,0.79190685,3162.8,3162.2,2.16498006]
[1642542304627,2.65012277,3162.8,3162.2,2.16498006]
[1642542304826,0.79190685,3162.8,3162.2,2.16498006]
[1642542305074,0.79077,3162.7,3162.2,2.16498006]
[1642542305870,0.79077,3162.7,3162.5,1.91183729]
[1642542306276,0.79077,3162.7,3162.2,2.16498006]
[1642542306879,1.58159,3162.7,3162.2,2.16498006]
[1642542307279,1.58171,3162.6,3162.2,2.16498006]
[1642542307683,0.79081,3162.5,3162.2,2.16498006]
[1642542309329,0.79081,3162.5,3162.4,0.07921884]
[1642542309529,0.79081,3162.5,3162.4,2.40706783]
[1642542309828,0.79081,3162.5,3162.4,0.08035568]
[1642542310235,1.5816,3162.7,3162.4,0.08035568]
[1642542310630,0.79076,3162.7,3162.4,0.08035568]
[1642542311030,0.46370423,3162.8,3162.4,0.08035568]
[1642542311230,0.79076,3162.7,3162.4,0.08035568]
[1642542312677,0.46370423,3162.8,3162.4,0.08035568]
[1642542313680,0.46370423,3162.8,3162.5,0.1264]
[1642542314580,0.46370423,3162.8,3162.6,0.03960952]
[1642542314780,0.46370423,3162.8,3162.6,0.07921884]
[1642542314981,0.46370423,3162.8,3162.7,2.04120294]
[1642542317830,5.95453423,3162.8,3162.6,0.07921884]
[1642542318032,6.09082,3162.7,3162.6,0.07921884]
[1642542320070,9.57359729,3162.7,3162.6,0.07921884]
[1642542320276,9.57359729,3162.7,3162.4,0.12753684]
[1642542320277,6.3409055,3162.6,3162.4,0.12753684]
[1642542320474,5.39093,3162.5,3162.4,0.00113684]
[1642542321476,7.29574743,3162.5,3162.4,0.00113684]
[1642542321676,7.29574743,3162.5,3161.6,3.0032532]
[1642542321677,5.55,3162.4,3162.2,3.684e-05]
[1642542321875,5.55,3162.4,3160.9,3.0032532]
[1642542321876,5.55,3162.2,3160.9,3.0032532]
[1642542322074,0.38,3162.1,3161.2,3.0032532]
[1642542322275,0.33,3162.1,3161.2,3.01007429]
[1642542322573,0.7910729,3161.9,3161.2,3.01007429]
[1642542322776,1.1710729,3161.9,3161.2,0.00682109]
[1642542322975,1.11404767,3161.7,3161.2,0.00682109]
[1642542323174,1.5824,3161.6,3161.0,0.00795793]
[1642542323379,1.5324,3161.6,3161.0,0.00795793]
[1642542323579,1.5324,3161.6,3160.9,0.00852636]
[1642542323580,1.8324,3161.6,3160.9,0.00852636]
[1642542323825,1.58238,3161.4,3160.9,0.00852636]
[1642542324124,1.58238,3161.3,3160.5,0.01080005]
[1642542324326,0.79119,3161.3,3160.5,0.01080005]
[1642542324523,0.79119,3161.3,3161.0,2.68699619]
[1642542324923,0.79119,3161.3,3161.1,0.00738951]
[1642542325824,0.79119,3161.3,3160.7,0.0096632]
[1642542326026,1.79116372,3161.2,3160.7,0.0096632]
[1642542326826,0.79115,3161.1,3160.7,0.0096632]
[1642542327024,0.79115,3161.1,3160.8,2.68692112]
[1642542327025,1.91195,3161.1,3160.8,2.68692112]
[1642542327472,1.91195,3161.1,3160.9,0.00852636]
[1642542327473,2.70322,3161.1,3160.9,0.00852636]
[1642542327677,0.7912418,3161.0,3160.9,0.00852636]
[1642542328480,0.79134,3160.9,3160.7,0.0096632]
[1642542328782,2.3740433,3160.9,3160.7,0.0096632]
[1642542329577,3.5255063,3160.7,3160.4,0.01136847]
[1642542329778,1.4255063,3160.7,3160.4,0.01136847]
[1642542330578,3.0081166,3160.7,3160.4,0.01136847]
[1642542330779,3.7993966,3160.7,3160.4,0.01136847]
[1642542331920,3.0080863,3160.7,3160.4,0.01136847]
[1642542333525,0.7914,3160.4,3159.9,0.1265]
[1642542333726,1.58279,3160.4,3159.7,0.1265]
[1642542333928,1.53809,3160.4,3160.0,0.0022737]
[1642542335469,0.79144,3160.3,3160.0,0.0022737]
[1642542335668,0.79144,3160.2,3159.9,0.00284212]
[1642542336170,1.8392894,3160.1,3159.9,0.00284212]
[1642542336572,1.8392894,3160.1,3159.8,0.00341054]
[1642542338472,1.8392894,3160.1,3159.6,2.68767616]
[1642542338473,1.8392894,3160.1,3159.7,0.00397897]
[1642542339319,1.8392894,3160.1,3159.8,2.68767616]
[1642542339717,1.8392894,3160.1,3159.9,0.00284212]
[1642542340719,1.8392894,3160.1,3159.5,2.19051828]
[1642542341122,1.8392894,3160.1,3159.6,0.00170527]
[1642542341521,3.9392894,3160.1,3159.6,0.00170527]
[1642542342575,3.9392894,3160.1,3159.7,0.1265]
[1642542342778,3.9392894,3160.1,3159.6,0.12820527]
[1642542343077,3.9392894,3160.1,3159.7,0.00113685]
[1642542344077,5.7227094,3160.1,3159.7,0.00113685]
[1642542344278,6.0961094,3160.1,3159.7,0.00113685]
[1642542344675,6.0961094,3160.1,3159.3,0.00341054]
[1642542344876,1.03889829,3159.5,3159.4,0.1265]
[1642542345079,2.71659875,3159.5,3159.3,0.00341054]
[1642542345277,2.71659875,3159.5,3159.4,0.00284212]
[1642542345478,2.71659875,3159.5,3159.2,0.00397897]
[1642542345879,1.67770046,3159.5,3159.2,0.00397897]
[1642542346079,1.67770046,3159.5,3159.1,0.00454739]
[1642542347730,2.51040046,3159.5,3159.1,0.00454739]
[1642542348429,2.51040046,3159.5,3159.0,0.00511581]
[1642542350673,0.90461782,3159.1,3159.0,0.00511581]
[1642542350872,0.90461782,3159.1,3158.7,0.00682108]
[1642542351075,1.67770046,3159.5,3158.6,0.00738951]
[1642542352080,1.67770046,3159.5,3158.4,0.01229793]
[1642542352081,1.47201898,3159.6,3158.5,0.00795793]
[1642542352279,1.58304,3160.0,3158.5,0.00795793]
[1642542352481,2.1,3160.1,3158.5,0.00795793]
[1642542353082,2.89143,3160.1,3158.5,0.00795793]
[1642542353282,2.89143,3160.1,3159.0,1.11525354]
[1642542353489,2.89143,3160.1,3159.1,0.15817]
[1642542353490,2.1,3160.1,3159.1,0.15817]
[1642542353726,2.1,3160.1,3159.1,0.00454739]
[1642542353929,2.1,3160.1,3159.2,0.13047897]
[1642542354128,2.1,3160.1,3159.2,0.1265]
[1642542354331,2.1,3160.1,3159.3,0.00341054]
[1642542354528,2.1,3160.1,3159.4,0.28467]